fUSD/lending_fUSD_20250109
["ID","MTS","AMOUNT","RATE_DAILY","PERIOD"]
[348323719,1736445053630,-674.56,0.00010515,2]
[348323720,1736445053641,-500.0,0.00010515,2]
[348323721,1736445053652,-1170.04,0.00010515,2]
[348323722,1736445053662,-500.0,0.00010515,2]
[348323723,1736445053673,-500.0,0.00010515,2]
[348323724,1736445053683,-510.41274783,0.00010515,2]
[348323725,1736445053692,-500.0,0.00010515,2]
[348323726,1736445053702,-500.0,0.00010515,2]
[348323727,1736445053712,-500.0,0.00010515,2]
[348323728,1736445053722,-500.0,0.00010515,2]
[348323729,1736445053732,-569.01,0.00010515,2]
[348323730,1736445053742,-629.29,0.00010515,2]
[348323731,1736445053752,-701.1,0.00010515,2]
[348323732,1736445053763,-500.0,0.00010515,2]
[348323733,1736445053773,-823.15,0.00010515,2]
[348323734,1736445053786,-500.0,0.00010515,2]
[348323735,1736445053795,-500.0,0.00010515,2]
[348323736,1736445053805,-633.79,0.00010515,2]
[348323737,1736445053815,-507.08086863,0.00010515,2]
[348323738,1736445053825,-1127.98,0.00010515,2]
[348323739,1736445053836,-500.0,0.00010515,2]
[348323740,1736445053847,-500.0,0.00010515,2]
[348323741,1736445053857,-500.0,0.00010515,2]
[348323742,1736445053867,-500.0,0.00010515,2]
[348323743,1736445053877,-500.0,0.00010515,2]
[348323744,1736445053887,-500.0,0.00010515,2]
[348323745,1736445053898,-563.25365256,0.00010515,2]
[348323746,1736445053908,-500.0,0.00010515,2]
[348323747,1736445053919,-500.0,0.00010515,2]
[348323748,1736445053930,-797.05,0.00010515,2]
[348323749,1736445053941,-500.0,0.00010515,2]
[348323750,1736445053950,-2257.86,0.00010515,2]
[348323751,1736445053960,-500.0,0.00010515,2]
[348323752,1736445053970,-500.0,0.00010515,2]
[348323753,1736445053980,-500.0,0.00010515,2]
[348323754,1736445053990,-584.37610873,0.00010515,2]
[348323755,1736445054000,-542.96,0.00010515,2]
[348323756,1736445054010,-1602.35,0.00010515,2]
[348323757,1736445054020,-646.67,0.00010515,2]
[348323758,1736445054030,-500.0,0.00010515,2]
[348323759,1736445054044,-3647.11,0.00010515,2]
[348323760,1736445054054,-500.0,0.00010515,2]
[348323761,1736445054063,-1094.76,0.00010515,2]
[348323762,1736445054072,-500.0,0.00010515,2]
[348323763,1736445054082,-740.12,0.00010515,2]
[348323764,1736445054091,-1139.06,0.00010515,2]
[348323765,1736445054102,-804.02,0.00010515,2]
[348323766,1736445054112,-500.0,0.00010515,2]
[348323767,1736445054123,-641.62,0.00010515,2]
[348323768,1736445054135,-500.0,0.00010515,2]
[348323769,1736445054145,-500.0,0.00010515,2]
[348323770,1736445054156,-2097.6,0.00010515,2]
[348323771,1736445054165,-500.0,0.00010515,2]
[348323772,1736445054175,-500.0,0.00010515,2]
[348323773,1736445054184,-500.0,0.00010515,2]
[348323774,1736445054194,-500.0,0.00010515,2]
[348323775,1736445054204,-7895.7,0.00010515,2]
[348323776,1736445054213,-500.0,0.00010515,2]
[348323777,1736445054222,-3771.66,0.00010515,2]
[348323778,1736445054232,-500.0,0.00010515,2]
[348323779,1736445054242,-500.0,0.00010515,2]
[348323780,1736445054252,-500.0,0.00010515,2]
[348323781,1736445054261,-500.0,0.00010515,2]
[348323782,1736445054271,-500.0,0.00010515,2]
[348323783,1736445054280,-500.0,0.00010515,2]
[348323784,1736445054293,-500.0,0.00010515,2]
[348323785,1736445054303,-500.0,0.00010515,2]
[348323786,1736445054313,-870.63,0.00010515,2]
[348323787,1736445054322,-500.0,0.00010515,2]
[348323788,1736445054331,-500.0,0.00010515,2]
[348323789,1736445054340,-500.0,0.00010515,2]
[348323790,1736445054350,-2614.75,0.00010515,2]
[348323791,1736445054359,-662.16,0.00010515,2]
[348323792,1736445054368,-500.0,0.00010515,2]
[348323793,1736445054377,-436.680334,0.00010515,2]
[348323794,1736445054387,-2292.14,0.00010515,2]
[348323795,1736445054397,-500.0,0.00010515,2]
[348323796,1736445054406,-500.0,0.00010515,2]
[348323797,1736445054415,-769.38,0.00010515,2]
[348323798,1736445054424,-1401.24,0.00010515,2]
[348323799,1736445054433,-500.0,0.00010515,2]
[348323800,1736445054443,-500.0,0.00010515,2]
[348323801,1736445054454,-2353.93,0.00010515,2]
[348323802,1736445054464,-500.0,0.00010515,2]
[348323803,1736445054474,-500.0,0.00010515,2]
[348323804,1736445054483,-1095.26,0.00010515,2]
[348323805,1736445054493,-577.19,0.00010515,2]
[348323806,1736445054503,-511.6,0.00010515,2]
[348323807,1736445054512,-500.0,0.00010515,2]
[348323808,1736445054521,-1149.2,0.00010515,2]
[348323809,1736445054531,-479.567355,0.00010515,2]
[348323810,1736445054545,-502.02814917,0.00010515,2]
[348323811,1736445054554,-500.0,0.00010515,2]
[348323812,1736445054564,-1992.84,0.00010515,2]
[348323813,1736445054574,-500.0,0.00010515,2]
[348323814,1736445054584,-832.87,0.00010515,2]
[348323815,1736445054594,-500.0,0.00010515,2]
[348323816,1736445054604,-500.0,0.00010515,2]
[348323817,1736445054614,-822.98,0.00010515,2]
[348323818,1736445054624,-500.0,0.00010515,2]
[348323819,1736445054633,-500.0,0.00010515,2]
[348323820,1736445054643,-526.09381563,0.00010515,2]
[348323821,1736445054655,-500.0,0.00010515,2]
[348323822,1736445054665,-500.0,0.00010515,2]
[348323823,1736445054675,-500.0,0.00010515,2]
[348323824,1736445054684,-606.14,0.00010515,2]
[348323825,1736445054695,-749.02,0.00010515,2]
[348323826,1736445054705,-500.0,0.00010515,2]
[348323827,1736445054714,-609.34,0.00010515,2]
[348323828,1736445054724,-500.0,0.00010515,2]
[348323829,1736445054735,-500.0,0.00010515,2]
[348323830,1736445054744,-500.0,0.00010515,2]
[348323831,1736445054754,-1200.82,0.00010515,2]
[348323832,1736445054763,-500.0,0.00010515,2]
[348323833,1736445054773,-864.01,0.00010515,2]
[348323834,1736445054783,-501.55820804,0.00010515,2]
[348323835,1736445054795,-1068.95,0.00010515,2]
[348323836,1736445054804,-590.87288533,0.00010515,2]
[348323837,1736445054814,-500.0,0.00010515,2]
[348323838,1736445054824,-915.32,0.00010515,2]
[348323839,1736445054834,-502.72407658,0.00010515,2]
[348323840,1736445054844,-500.0,0.00010515,2]
[348323841,1736445054853,-502.94473442,0.00010515,2]
[348323842,1736445054869,-661.21,0.00010515,2]
[348323843,1736445054884,-500.0,0.00010515,2]
[348323844,1736445054896,-610.29,0.00010515,2]
[348323845,1736445054908,-500.0,0.00010515,2]
[348323846,1736445054921,-1573.31,0.00010515,2]
[348323847,1736445054935,-500.0,0.00010515,2]
[348323848,1736445054950,-500.0,0.00010515,2]
[348323849,1736445054965,-500.0,0.00010515,2]
[348323850,1736445054978,-500.0,0.00010515,2]
[348323851,1736445054989,-861.03,0.00010515,2]
[348323852,1736445055001,-500.0,0.00010515,2]
[348323853,1736445055015,-500.0,0.00010515,2]
[348323854,1736445055027,-3452.34,0.00010515,2]
[348323855,1736445055041,-500.0,0.00010515,2]
[348323856,1736445055055,-1572.61,0.00010515,2]
[348323857,1736445055069,-886.82,0.00010515,2]
[348323858,1736445055082,-500.0,0.00010515,2]
[348323859,1736445055096,-500.0,0.00010515,2]
[348323860,1736445055109,-500.0,0.00010515,2]
[348323861,1736445055123,-500.0,0.00010515,2]
[348323862,1736445055135,-200.0,0.0001059,2]
[348323863,1736445055148,-569.16,0.00010615,2]
[348323864,1736445055162,-602.69,0.00010615,2]
[348323865,1736445055174,-500.0,0.00010615,2]
[348323866,1736445055187,-500.0,0.00010615,2]
[348323867,1736445055201,-500.0,0.00010615,2]
[348323868,1736445055213,-500.0,0.00010615,2]
[348323869,1736445055226,-895.05,0.00010615,2]
[348323870,1736445055236,-500.0,0.00010615,2]
[348323871,1736445055248,-689.1,0.00010615,2]
[348323872,1736445055260,-500.0,0.00010615,2]
[348323873,1736445055277,-698.8,0.00010615,2]
[348323874,1736445055289,-500.0,0.00010615,2]
[348323875,1736445055300,-500.0,0.00010615,2]
[348323876,1736445055311,-500.0,0.00010615,2]
[348323877,1736445055323,-500.0,0.00010615,2]
[348323878,1736445055338,-500.0,0.00010615,2]
[348323879,1736445055350,-500.0,0.00010615,2]
[348323880,1736445055362,-500.0,0.00010615,2]
[348323881,1736445055374,-2858.44,0.00010615,2]
[348323882,1736445055388,-2074.84,0.00010615,2]
[348323883,1736445055401,-1487.55,0.00010615,2]
[348323884,1736445055413,-1062.87,0.00010615,2]
[348323885,1736445055425,-2223.86,0.00010615,2]
[348323886,1736445055439,-500.0,0.00010615,2]
[348323887,1736445055453,-703.22,0.00010615,2]
[348323888,1736445055467,-1698.0,0.00010615,2]
[348323889,1736445055479,-732.02,0.00010615,2]
[348323890,1736445055492,-530.24,0.00010615,2]
[348323891,1736445055506,-500.0,0.00010616,2]
[348323892,1736445055519,-500.0,0.00010616,2]
[348323893,1736445055531,-500.0,0.00010616,2]
[348323894,1736445055544,-293.25748826,0.00010616,2]
[348323895,1736445055557,-500.0,0.00010616,2]
[348323896,1736445055569,-500.0,0.00010616,2]
[348323897,1736445055581,-528.97,0.00010616,2]
[348323898,1736445055593,-710.68,0.00010616,2]
[348323899,1736445055605,-500.0,0.00010616,2]
[348323900,1736445055618,-500.0,0.00010616,2]
[348323901,1736445055631,-266.63,0.00010616,2]
[348323902,1736445055643,-500.0,0.00010616,2]
[348323903,1736445055655,-184.1,0.00010616,2]
[348323904,1736445055667,-551.32,0.00010616,2]
[348323905,1736445055678,-500.0,0.00010616,2]
[348323906,1736445055691,-985.92,0.00010616,2]
[348323907,1736445055703,-500.0,0.00010616,2]
[348323908,1736445055715,-500.0,0.00010616,2]
[348323909,1736445055727,-500.0,0.00010616,2]
[348323910,1736445055739,-500.0,0.00010616,2]
[348323911,1736445055751,-500.0,0.00010616,2]
[348323912,1736445055762,-651.26,0.00010616,2]
[348323913,1736445055774,-566.59492456,0.00010616,2]
[348323914,1736445055787,-574.39,0.00010616,2]
[348323915,1736445055798,-401.25737241,0.00010616,2]
[348323916,1736445055809,-500.0,0.00010616,2]
[348323917,1736445055821,-668.49,0.00010616,2]
[348323918,1736445055833,-500.0,0.00010616,2]
[348323919,1736445055845,-1000.0,0.00010616,2]
[348323920,1736445055858,-306.19,0.00010616,2]
[348323921,1736445055870,-500.0,0.00010616,2]
[348323922,1736445055884,-500.0,0.00010616,2]
[348323923,1736445055896,-337.07218219,0.00010616,2]
[348323924,1736445055908,-500.0,0.00010616,2]
[348323925,1736445055920,-500.0,0.00010616,2]
[348323926,1736445055932,-500.0,0.00010616,2]
[348323927,1736445055946,-500.0,0.00010616,2]
[348323928,1736445055958,-500.0,0.00010616,2]
[348323929,1736445055971,-612.17,0.00010616,2]
[348323930,1736445055984,-1437.21,0.00010616,2]
[348323931,1736445055996,-500.0,0.00010616,2]
[348323932,1736445056011,-500.0,0.00010616,2]
[348323933,1736445056025,-500.0,0.00010616,2]
[348323934,1736445056039,-500.0,0.00010616,2]
[348323935,1736445056052,-500.0,0.00010616,2]
[348323936,1736445056064,-500.0,0.00010616,2]
[348323937,1736445056075,-500.0,0.00010616,2]
[348323938,1736445056087,-500.0,0.00010616,2]
[348323939,1736445056098,-500.0,0.00010616,2]
[348323940,1736445056110,-1093.65,0.00010616,2]
[348323941,1736445056122,-500.0,0.00010616,2]
[348323942,1736445056133,-500.0,0.00010616,2]
[348323943,1736445056145,-500.0,0.00010616,2]
[348323944,1736445056156,-500.0,0.00010616,2]
[348323945,1736445056167,-500.0,0.00010616,2]
[348323946,1736445056179,-594.57,0.00010616,2]
[348323947,1736445056191,-500.0,0.00010616,2]
[348323948,1736445056202,-500.0,0.00010616,2]
[348323949,1736445056214,-500.0,0.00010616,2]
[348323950,1736445056225,-631.02,0.00010616,2]
[348323951,1736445056238,-500.0,0.00010616,2]
[348323952,1736445056250,-500.0,0.00010616,2]
[348323953,1736445056262,-500.0,0.00010616,2]
[348323954,1736445056274,-500.0,0.00010616,2]
[348323955,1736445056286,-500.0,0.00010616,2]
[348323956,1736445056298,-619.56,0.00010616,2]
[348323957,1736445056310,-500.0,0.00010616,2]
[348323958,1736445056322,-500.0,0.00010616,2]
[348323959,1736445056333,-500.0,0.00010616,2]
[348323960,1736445056345,-500.0,0.00010616,2]
[348323961,1736445056357,-500.0,0.00010616,2]
[348323962,1736445056369,-500.0,0.00010616,2]
[348323963,1736445056380,-500.0,0.00010616,2]
[348323964,1736445056394,-500.0,0.00010616,2]
[348323965,1736445056407,-500.0,0.00010616,2]
[348323966,1736445056419,-500.0,0.00010616,2]
[348323967,1736445056432,-500.0,0.00010616,2]
[348323968,1736445056445,-500.0,0.00010616,2]
[348323969,1736445056462,-500.0,0.00010616,2]
[348323970,1736445056474,-500.0,0.00010616,2]
[348323971,1736445056486,-737.91,0.00010616,2]
[348323972,1736445056499,-500.0,0.00010616,2]
[348323973,1736445056512,-500.0,0.00010616,2]
[348323974,1736445056524,-500.0,0.00010616,2]
[348323975,1736445056537,-500.0,0.00010616,2]
[348323976,1736445056551,-518.73,0.00010616,2]
[348323977,1736445056562,-500.0,0.00010616,2]
[348323978,1736445056574,-500.0,0.00010616,2]
[348323979,1736445056586,-555.32,0.00010616,2]
[348323980,1736445056598,-500.0,0.00010616,2]
[348323981,1736445056610,-500.0,0.00010616,2]
[348323982,1736445056622,-500.0,0.00010616,2]
[348323983,1736445056634,-500.0,0.00010616,2]
[348323984,1736445056646,-500.0,0.00010616,2]
[348323985,1736445056658,-524.35,0.00010616,2]
[348323986,1736445056670,-661.07,0.00010616,2]
[348323987,1736445056682,-500.0,0.00010616,2]
[348323988,1736445056694,-500.0,0.00010616,2]
[348323989,1736445056705,-500.0,0.00010616,2]
[348323990,1736445056717,-591.12,0.00010616,2]
[348323991,1736445056729,-500.0,0.00010616,2]
[348323992,1736445056740,-500.0,0.00010616,2]
[348323993,1736445056753,-646.2,0.00010616,2]
[348323994,1736445056765,-500.0,0.00010616,2]
[348323995,1736445056778,-500.0,0.00010616,2]
[348323996,1736445056791,-500.0,0.00010616,2]
[348323997,1736445056803,-500.0,0.00010616,2]
[348323998,1736445056815,-500.0,0.00010616,2]
[348323999,1736445056827,-428.74,0.00010616,2]
[348324000,1736445056838,-500.0,0.00010616,2]
[348324001,1736445056849,-500.0,0.00010616,2]
[348324002,1736445056861,-500.0,0.00010616,2]
[348324003,1736445056873,-500.0,0.00010616,2]
[348324004,1736445056885,-500.0,0.00010616,2]
[348324005,1736445056897,-500.0,0.00010616,2]
[348324006,1736445056907,-500.0,0.00010616,2]
[348324007,1736445056919,-500.0,0.00010616,2]
[348324008,1736445056931,-500.0,0.00010616,2]
[348324009,1736445056943,-500.0,0.00010616,2]
[348324010,1736445056955,-500.0,0.00010616,2]
[348324011,1736445056967,-304.38551846,0.00010616,2]
[348324012,1736445056979,-500.0,0.00010616,2]
[348324013,1736445056990,-425.95839558,0.00010616,2]
[348324014,1736445057002,-753.77,0.00010616,2]
[348324015,1736445057014,-500.0,0.00010616,2]
[348324016,1736445057026,-745.02,0.00010616,2]
[348324017,1736445057040,-427.2450455,0.00010616,2]
[348324018,1736445057051,-308.0,0.00010616,2]
[348324019,1736445057063,-500.0,0.00010616,2]
[348324020,1736445057076,-500.0,0.00010616,2]
[348324021,1736445057088,-500.0,0.00010616,2]
[348324022,1736445057100,-500.0,0.00010616,2]
[348324023,1736445057112,-500.0,0.00010616,2]
[348324024,1736445057124,-500.0,0.00010616,2]
[348324025,1736445057137,-500.0,0.00010616,2]
[348324026,1736445057148,-500.0,0.00010616,2]
[348324027,1736445057160,-500.0,0.00010616,2]
[348324028,1736445057172,-500.0,0.00010616,2]
[348324029,1736445057184,-587.21,0.00010616,2]
[348324030,1736445057195,-500.0,0.00010616,2]
[348324031,1736445057207,-660.1,0.00010616,2]
[348324032,1736445057218,-500.0,0.00010616,2]
[348324033,1736445057230,-503.73,0.00010616,2]
[348324034,1736445057242,-500.0,0.00010616,2]
[348324035,1736445057253,-500.0,0.00010616,2]
[348324036,1736445057265,-500.0,0.00010616,2]
[348324037,1736445057564,-500.0,0.00010616,2]
[348324038,1736445057597,-500.0,0.00010616,2]
[348324039,1736445057609,-545.73,0.00010616,2]
[348324040,1736445057619,-500.0,0.00010616,2]
[348324041,1736445057630,-500.0,0.00010616,2]
[348324042,1736445057641,-500.0,0.00010616,2]
[348324043,1736445057650,-3242.54,0.00010616,2]
[348324044,1736445057661,-1018.23,0.00010616,2]
[348324045,1736445057670,-500.0,0.00010616,2]
[348324046,1736445057680,-1137.61,0.00010616,2]
[348324047,1736445057689,-500.0,0.00010616,2]
[348324048,1736445057699,-500.0,0.00010616,2]
[348324049,1736445057709,-517.86,0.00010616,2]
[348324050,1736445057719,-500.0,0.00010616,2]
[348324051,1736445057728,-743.81,0.00010616,2]
[348324052,1736445057738,-7151.48,0.00010616,2]
[348324053,1736445057750,-638.87,0.00010616,2]
[348324054,1736445057761,-604.69,0.00010616,2]
[348324055,1736445057771,-500.0,0.00010617,2]
[348324056,1736445057779,-898.09,0.00010617,2]
[348324057,1736445057792,-500.0,0.00010617,2]
[348324058,1736445057801,-500.0,0.00010617,2]
[348324059,1736445057811,-812.75,0.00010617,2]
[348324060,1736445057820,-1270.57,0.00010617,2]
[348324061,1736445057830,-1551.69,0.00010617,2]
[348324062,1736445057839,-1033.83,0.00010617,2]
[348324063,1736445057849,-2553.98,0.00010617,2]
[348324064,1736445057859,-2053.02,0.00010617,2]
[348324065,1736445057869,-2446.73,0.00010617,2]
[348324066,1736445057879,-1335.79,0.00010617,2]
[348324067,1736445057890,-2728.27,0.00010617,2]
[348324068,1736445057901,-921.37,0.00010617,2]
[348324069,1736445057911,-876.75,0.00010617,2]
[348324070,1736445057921,-1384.37,0.00010617,2]
[348324071,1736445057931,-1491.35,0.00010617,2]
[348324072,1736445057942,-1705.45,0.00010617,2]
[348324073,1736445057952,-1411.08,0.00010617,2]
[348324074,1736445057962,-38867.0,0.00010767,2]
[348324075,1736445057973,-219.07594498,0.00010775,2]
[348324076,1736445057984,-546.63,0.00010779,2]
[348324077,1736445057994,-500.0,0.00010779,2]
[348324078,1736445058004,-904.06,0.00010779,2]
[348324079,1736445058014,-582.76,0.00010779,2]
[348324080,1736445058027,-1855.69,0.00010779,2]
[348324081,1736445058037,-1206.64,0.00010779,2]
[348324082,1736445058047,-1539.41,0.00010779,2]
[348324083,1736445058056,-1610.32,0.00010779,2]
[348324084,1736445058066,-2299.09,0.00010779,2]
[348324085,1736445058075,-200.0,0.0001078,2]
[348324086,1736445058085,-562.78,0.00010788,2]
[348324087,1736445058095,-2880.05,0.00010788,2]
[348324088,1736445058105,-4014.68,0.00010788,2]
[348324089,1736445058115,-2100.5,0.00010788,2]
[348324090,1736445058125,-500.0,0.00010788,2]
[348324091,1736445058134,-1438.14,0.00010788,2]
[348324092,1736445058144,-3285.44,0.00010788,2]
[348324093,1736445058154,-500.0,0.00010788,2]
[348324094,1736445058163,-472.27246413,0.00010788,2]
[348324095,1736445058173,-500.0,0.00010788,2]
[348324096,1736445058184,-941.34,0.00010788,2]
[348324097,1736445058193,-500.0,0.00010788,2]
[348324098,1736445058203,-815.78,0.00010789,2]
[348324099,1736445058212,-500.0,0.00010789,2]
[348324100,1736445058222,-500.0,0.00010789,2]
[348324101,1736445058231,-1168.48,0.00010789,2]
[348324102,1736445058241,-564.15,0.00010789,2]
[348324103,1736445058250,-546.34,0.00010789,2]
[348324104,1736445058259,-500.0,0.00010789,2]
[348324105,1736445058269,-500.0,0.00010789,2]
[348324106,1736445058280,-748.91,0.00010789,2]
[348324107,1736445058292,-500.0,0.00010789,2]
[348324108,1736445058302,-555.4,0.00010789,2]
[348324109,1736445058311,-500.0,0.00010789,2]
[348324110,1736445058321,-500.0,0.00010789,2]
[348324111,1736445058330,-715.43,0.00010789,2]
[348324112,1736445058339,-500.0,0.00010789,2]
[348324113,1736445058348,-384.2,0.00010789,2]
[348324114,1736445058358,-500.0,0.00010789,2]
[348324115,1736445058367,-500.0,0.00010789,2]
[348324116,1736445058376,-1079.05,0.00010789,2]
[348324117,1736445058385,-500.0,0.00010789,2]
[348324118,1736445058395,-500.0,0.00010789,2]
[348324119,1736445058404,-588.27,0.00010789,2]
[348324120,1736445058413,-500.0,0.00010789,2]
[348324121,1736445058422,-500.0,0.00010789,2]
[348324122,1736445058432,-500.0,0.00010789,2]
[348324123,1736445058443,-668.81,0.00010789,2]
[348324124,1736445058454,-723.52,0.00010789,2]
[348324125,1736445058466,-500.0,0.00010789,2]
[348324126,1736445058476,-500.0,0.00010789,2]
[348324127,1736445058487,-718.01,0.00010789,2]
[348324128,1736445058496,-984.26,0.00010789,2]
[348324129,1736445058506,-500.0,0.00010789,2]
[348324130,1736445058516,-593.67,0.00010789,2]
[348324131,1736445058525,-500.0,0.00010789,2]
[348324132,1736445058539,-500.0,0.00010789,2]
[348324133,1736445058549,-1724.41,0.00010789,2]
[348324134,1736445058558,-500.0,0.00010789,2]
[348324135,1736445058567,-851.84,0.00010789,2]
[348324136,1736445058576,-500.0,0.00010789,2]
[348324137,1736445058586,-500.0,0.00010789,2]
[348324138,1736445058595,-517.17,0.00010789,2]
[348324139,1736445058604,-500.0,0.00010789,2]
[348324140,1736445058614,-847.67,0.00010789,2]
[348324141,1736445058624,-500.0,0.00010789,2]
[348324142,1736445058633,-500.0,0.00010789,2]
[348324143,1736445058643,-500.0,0.00010789,2]
[348324144,1736445058652,-1132.14,0.00010789,2]
[348324145,1736445058661,-686.92,0.00010789,2]
[348324146,1736445058670,-500.0,0.00010789,2]
[348324147,1736445058680,-658.3,0.00010789,2]
[348324148,1736445058690,-500.0,0.00010789,2]
[348324149,1736445058701,-500.0,0.00010789,2]
[348324150,1736445058711,-500.0,0.00010789,2]
[348324151,1736445058719,-500.0,0.00010789,2]
[348324152,1736445058727,-674.56,0.00010789,2]
[348324153,1736445058735,-500.0,0.00010789,2]
[348324154,1736445058745,-1170.04,0.00010789,2]
[348324155,1736445058754,-500.0,0.00010789,2]
[348324156,1736445058763,-500.0,0.00010789,2]
[348324157,1736445058774,-500.0,0.00010789,2]
[348324158,1736445058784,-500.0,0.00010789,2]
[348324159,1736445058795,-500.0,0.00010789,2]
[348324160,1736445058804,-500.0,0.00010789,2]
[348324161,1736445058814,-629.29,0.00010789,2]
[348324162,1736445058823,-701.1,0.00010789,2]
[348324163,1736445058833,-500.0,0.00010789,2]
[348324164,1736445058842,-823.15,0.00010789,2]
[348324165,1736445058852,-500.0,0.00010789,2]
[348324166,1736445058861,-500.0,0.00010789,2]
[348324167,1736445058871,-633.79,0.00010789,2]
[348324168,1736445058881,-1127.98,0.00010789,2]
[348324169,1736445058891,-500.0,0.00010789,2]
[348324170,1736445058901,-500.0,0.00010789,2]
[348324171,1736445058912,-500.0,0.00010789,2]
[348324172,1736445058923,-500.0,0.00010789,2]
[348324173,1736445058934,-500.0,0.00010789,2]
[348324174,1736445058945,-500.0,0.00010789,2]
[348324175,1736445058955,-797.05,0.00010789,2]
[348324176,1736445058965,-500.0,0.00010789,2]
[348324177,1736445058975,-2257.86,0.00010789,2]
[348324178,1736445058985,-277.61886525,0.00010789,2]
[348324179,1736445058998,-448.12373413,0.00010789,2]
[348324180,1736445059009,-500.0,0.00010789,2]
[348324181,1736445059018,-542.96,0.00010789,2]
[348324182,1736445059028,-1602.35,0.00010789,2]
[348324183,1736445059039,-646.67,0.00010789,2]
[348324184,1736445059048,-319.3166885,0.00010789,2]
[348324185,1736445059057,-3647.11,0.00010789,2]
[348324186,1736445059066,-500.0,0.00010789,2]
[348324187,1736445059076,-1094.76,0.00010789,2]
[348324188,1736445059088,-500.0,0.00010789,2]
[348324189,1736445059097,-740.12,0.00010789,2]
[348324190,1736445059107,-1139.06,0.00010789,2]
[348324191,1736445059117,-804.02,0.00010789,2]
[348324192,1736445059127,-500.0,0.00010789,2]
[348324193,1736445059139,-641.62,0.00010789,2]
[348324194,1736445059149,-500.0,0.00010789,2]
[348324195,1736445059159,-2097.6,0.00010789,2]
[348324196,1736445059170,-500.0,0.00010789,2]
[348324197,1736445059182,-500.0,0.00010789,2]
[348324198,1736445059192,-7895.7,0.00010789,2]
[348324199,1736445059202,-500.0,0.00010789,2]
[348324200,1736445059211,-3771.66,0.00010789,2]
[348324201,1736445059222,-500.0,0.00010789,2]
[348324202,1736445059234,-500.0,0.00010789,2]
[348324203,1736445059245,-500.0,0.00010789,2]
[348324204,1736445059254,-500.0,0.00010789,2]
[348324205,1736445059264,-870.63,0.00010789,2]
[348324206,1736445059276,-500.0,0.00010789,2]
[348324207,1736445059285,-500.0,0.00010789,2]
[348324208,1736445059297,-2614.75,0.00010789,2]
[348324209,1736445059306,-662.16,0.00010789,2]
[348324210,1736445059315,-500.0,0.00010789,2]
[348324211,1736445059324,-436.680334,0.00010789,2]
[348324212,1736445059333,-2292.14,0.00010789,2]
[348324213,1736445059343,-500.0,0.00010789,2]
[348324214,1736445059352,-769.38,0.00010789,2]
[348324215,1736445059361,-1401.24,0.00010789,2]
[348324216,1736445059371,-500.0,0.00010789,2]
[348324217,1736445059380,-2353.93,0.00010789,2]
[348324218,1736445059389,-500.0,0.00010789,2]